bitfinex/quotes_ETHUSD_20251008
["timestamp","ask_amount","ask_price","bid_price","bid_amount"]
[1759929380523,2.22650047,4491.4,4491.1,14.5]
[1759929380835,2.33740047,4491.4,4491.2,2.52]
[1759929381044,2.22650047,4491.4,4491.2,2.52]
[1759929381601,2.22650047,4491.4,4491.3,2.52]
[1759929382127,0.1112,4491.6,4491.3,2.52]
[1759929382329,2.22647726,4491.4,4491.3,2.52]
[1759929384502,2.22657641,4491.2,4491.0,0.1112]
[1759929384702,2.22657641,4491.2,4491.1,1.105]
[1759929385030,2.22657641,4491.2,4490.2,14.5]
[1759929385031,0.1109,4491.2,4490.2,14.5]
[1759929385215,0.1101,4491.2,4490.3,2.52]
[1759929385413,2.22687409,4490.6,4490.3,2.52]
[1759929386009,2.22687409,4490.6,4490.4,14.5]
[1759929386214,2.22687409,4490.6,4490.5,2.52]
[1759929386642,2.22682897,4490.7,4490.5,2.52]
[1759929387547,2.22682897,4490.7,4490.6,14.5]
[1759929388733,4.47880722,4490.7,4490.6,2.52]
[1759929389535,2.22707229,4490.2,4490.1,14.51]
[1759929389732,2.22707229,4490.2,4490.1,17.03]
[1759929390928,2.22703219,4490.3,4490.1,17.03]
[1759929391136,1.92,4490.4,4490.1,17.03]
[1759929391444,2.22692883,4490.5,4490.1,14.51]
[1759929391661,0.59603879,4492.1,4490.1,14.51]
[1759929391662,0.59603879,4492.4,4490.4,2.1452]
[1759929391810,0.79788518,4492.7,4490.4,2.1452]
[1759929391811,0.1104,4492.7,4490.5,4.38568012]
[1759929392005,0.1104,4492.6,4490.6,0.435]
[1759929392334,2.2263449,4491.7,4491.3,14.5]
[1759929392536,0.2269,4491.8,4491.3,14.5]
[1759929392722,0.2269,4491.8,4489.7,0.66891794]
[1759929392723,4.14642769,4491.5,4491.4,2.52]
[1759929392924,2.32462769,4491.5,4491.4,2.52]
[1759929393126,2.99441608,4491.5,4491.4,2.52]
[1759929393550,1.92,4491.2,4490.5,14.5]
[1759929393837,2.22660715,4491.2,4490.6,2.52]
[1759929394045,2.22660715,4491.2,4490.6,2.54226873]
[1759929394259,2.22662635,4491.1,4490.7,2.52]
[1759929394760,0.1112,4491.0,4490.6,0.02226873]
[1759929394947,0.1112,4491.0,4490.7,2.52]
[1759929395145,2.22672733,4490.9,4490.7,2.52]
[1759929395830,0.1112,4491.0,4490.5,14.5]
[1759929396029,2.22677473,4490.8,4490.6,2.52]
[1759929396886,2.33788911,4491.0,4490.6,2.52]
[1759929397227,2.33788911,4491.0,4490.5,14.5]
[1759929397430,2.33788911,4491.0,4490.6,2.52]
[1759929398237,2.22673288,4490.9,4490.6,2.52]
[1759929399053,2.33788549,4491.0,4490.6,2.52]
[1759929399433,2.22676106,4490.9,4490.6,2.52]
[1759929400347,2.33788162,4491.0,4490.6,2.52]
[1759929400723,2.33788162,4491.0,4490.3,2.33822213]
[1759929400724,0.0982,4490.9,4490.7,2.52]
[1759929400944,2.32492515,4490.9,4490.8,2.52]
[1759929401263,2.32497473,4490.8,4490.7,14.5]
[1759929401759,2.22701161,4490.4,4490.1,0.011]
[1759929401946,0.1112,4490.4,4490.2,2.52]
[1759929402125,0.2094,4490.4,4490.2,2.52]
[1759929402730,2.43638281,4490.4,4490.1,0.011]
[1759929402959,2.22704929,4490.3,4490.2,2.52]
[1759929403470,2.43638571,4490.4,4490.2,2.52]
[1759929403629,2.22702269,4490.3,4490.2,2.52]
[1759929404045,0.1112,4490.4,4490.1,0.011]
[1759929404246,15.94417769,4491.5,4490.1,0.011]
[1759929404247,2.32527229,4490.2,4490.1,0.011]
[1759929404564,2.78049187,4490.2,4490.1,2.531]
[1759929407643,2.68229187,4490.2,4490.1,2.531]
[1759929408268,2.68149187,4490.2,4490.1,2.531]
[1759929408468,2.77969187,4490.2,4490.1,2.531]
[1759929409579,2.68149187,4490.2,4490.1,2.531]
[1759929410091,2.77969187,4490.2,4490.1,2.531]
[1759929411663,4.69969187,4490.2,4490.1,0.011]
[1759929412253,4.69969187,4490.2,4490.1,2.532]
[1759929412650,4.69969187,4490.2,4490.1,0.011]
[1759929413284,4.69969187,4490.2,4489.6,0.001]
[1759929413285,1.92,4490.1,4489.6,0.001]
[1759929413451,4.1472707,4489.8,4489.7,0.768]
[1759929413777,4.4641707,4489.8,4489.7,0.768]
[1759929413983,2.22732031,4489.7,4489.6,0.001]
[1759929414491,4.24582031,4489.7,4489.6,0.001]
[1759929420259,4.87942031,4489.7,4489.6,0.001]
[1759929420463,7.18528986,4489.7,4489.6,0.001]
[1759929421463,6.0730543,4489.7,4489.6,0.001]
[1759929421665,4.24582031,4489.7,4489.6,0.001]
[1759929421866,2.32582031,4489.7,4489.6,0.001]
[1759929422173,4.24582031,4489.7,4489.6,0.001]
[1759929425106,2.32582031,4489.7,4489.6,0.001]
[1759929426104,4.46422031,4489.7,4489.6,0.001]
[1759929426275,5.36929891,4489.7,4489.6,0.001]
[1759929426914,5.36929891,4489.7,4489.6,2.522]
[1759929431313,4.46342031,4489.7,4489.6,2.522]
[1759929432234,4.46342031,4489.7,4489.6,0.001]
[1759929432435,4.46342031,4489.7,4489.6,2.522]
[1759929433199,4.46342031,4489.7,4489.6,0.001]
[1759929433437,4.46342031,4489.7,4489.6,2.522]
[1759929436338,4.46342031,4489.7,4489.6,0.001]
[1759929436339,5.17641891,4489.7,4489.6,0.001]
[1759929436734,5.65642906,4489.7,4489.6,0.001]
[1759929437034,6.49837508,4489.7,4489.6,0.001]
[1759929438239,2.86116838,4489.2,4489.1,1e-08]
[1759929438403,19.6961218,4489.2,4489.1,1e-08]
[1759929438600,20.0138218,4489.2,4489.1,1e-08]
[1759929439961,20.61394732,4489.2,4489.1,1e-08]
[1759929440549,20.01383925,4489.2,4489.1,1e-08]
[1759929441461,6.29610873,4489.2,4489.1,1e-08]
[1759929442761,3.74250873,4489.2,4489.1,1e-08]
[1759929443255,3.53414526,4489.2,4489.1,1e-08]
[1759929444281,2.22755168,4489.3,4489.1,1e-08]
[1759929444432,2.22756838,4489.2,4489.1,1e-08]
[1759929444825,0.3199,4489.9,4489.1,1e-08]
[1759929445065,2.32722464,4489.9,4489.1,0.47300001]
[1759929445236,2.22746577,4489.5,4489.1,1e-08]
[1759929445442,2.2273808,4489.6,4489.1,1e-08]
[1759929446227,0.1112,4489.5,4489.1,1e-08]
[1759929446431,2.33862104,4489.5,4489.1,1e-08]
[1759929447887,2.22748405,4489.4,4489.1,1e-08]
[1759929448176,2.22751876,4489.3,4489.1,1e-08]
[1759929448342,4.14756838,4489.2,4489.1,1e-08]
[1759929448690,4.24876838,4489.2,4489.1,1e-08]
[1759929451949,0.002,4490.2,4489.1,1e-08]
[1759929452172,0.002,4489.2,4489.1,0.44880001]
[1759929452378,0.002,4489.2,4489.1,1e-08]
[1759929452588,0.002,4489.2,4489.1,2.95089419]
[1759929452945,0.002,4489.2,4489.1,0.70100001]
[1759929454251,0.0012,4489.2,4489.1,0.72327619]
[1759929455883,0.0012,4489.2,4489.1,3.06209419]
[1759929456048,0.0012,4489.2,4489.1,17.56209419]
[1759929456252,0.0012,4489.2,4489.1,17.53981801]
[1759929457991,0.0012,4489.2,4489.1,14.86340001]
[1759929458156,0.0012,4489.2,4489.1,14.50000001]
[1759929458356,0.0012,4489.2,4489.1,17.02100001]
[1759929459078,0.0012,4489.2,4489.1,15.06000001]
[1759929459386,0.0012,4489.2,4489.1,17.58100001]
[1759929459980,0.0012,4489.2,4489.1,17.13220001]
[1759929460569,0.0012,4489.2,4489.1,14.61120001]
[1759929460769,0.0012,4489.2,4489.1,17.02100001]
[1759929463896,2.22876838,4489.2,4489.1,1e-08]
[1759929464188,4.48506522,4489.2,4489.1,1e-08]
[1759929464487,4.48506522,4489.2,4489.1,0.44200001]
[1759929468005,4.48506522,4489.2,4489.1,1e-08]
[1759929468174,4.96449231,4489.2,4489.1,1e-08]
[1759929468879,4.147618,4489.1,4487.4,0.001]
[1759929469077,1.92,4488.5,4487.4,0.001]
[1759929469278,13.92138473,4488.6,4487.4,0.001]
[1759929469279,2.2280647,4488.2,4488.1,0.033]
[1759929469599,2.2280647,4488.2,4488.1,0.01]
[1759929469781,2.3303647,4488.2,4488.1,0.01]
[1759929471102,2.2280647,4488.2,4488.1,2.531]
[1759929471490,0.11414455,4488.3,4488.1,2.532]
[1759929471801,0.0012,4489.2,4488.2,0.474]
[1759929472000,2.22877179,4489.2,4488.2,2.70205782]
[1759929472505,2.22877179,4489.2,4488.3,14.5]
[1759929472672,2.22772546,4488.9,4488.3,14.5]
[1759929473887,0.0012,4489.2,4488.3,14.5]
[1759929474091,0.1023,4489.1,4488.4,2.521]
[1759929474306,2.22778638,4488.8,4488.4,2.521]
[1759929474607,0.1023,4489.1,4488.4,2.521]
[1759929474608,2.22785951,4488.7,4488.4,2.521]
[1759929474778,2.227764,4488.9,4488.5,14.5]
[1759929475175,2.22779054,4488.8,4488.6,2.521]
[1759929476736,0.1023,4489.1,4488.6,2.521]
[1759929477009,2.22781651,4488.7,4488.6,2.521]
[1759929477414,2.22701651,4488.7,4488.6,2.521]
[1759929477779,2.22777119,4488.8,4488.6,2.521]
[1759929478113,2.33887755,4489.0,4488.6,2.521]
[1759929478407,2.22781651,4488.7,4488.6,2.521]
[1759929478772,0.1112,4489.0,4488.6,2.521]
[1759929478975,2.33886847,4489.0,4488.6,2.521]
[1759929479208,0.1112,4489.0,4488.6,2.521]
[1759929479416,2.22780625,4488.8,4488.6,2.521]
[1759929479709,2.22782003,4488.7,4488.3,14.5]
[1759929480012,2.22782003,4488.7,4488.4,2.521]
[1759929480210,0.1112,4489.0,4488.2,0.1112]
[1759929480518,0.1112,4488.6,4488.3,1.042]
[1759929481019,2.22791578,4488.5,4488.3,1.042]
[1759929481219,2.33910124,4488.6,4488.3,1.042]
[1759929482527,0.1112,4488.6,4488.3,1.042]
[1759929483615,2.33907463,4488.6,4488.3,1.042]
[1759929483818,0.1112,4488.6,4488.3,1.042]
[1759929484322,2.22792795,4488.5,4488.4,14.5]
[1759929485121,2.22792795,4488.5,4488.4,17.021]
[1759929486024,2.33907327,4488.6,4488.4,17.021]
[1759929486234,0.1112,4488.6,4488.4,17.021]
[1759929487093,2.33906725,4488.6,4488.4,17.021]
[1759929487737,2.22791578,4488.5,4488.4,17.021]
[1759929487942,2.22791578,4488.5,4488.4,2.521]
[1759929488133,0.1112,4488.6,4488.4,2.521]
[1759929488349,0.0012,4489.2,4488.5,0.4476]
[1759929488350,2.227618,4489.1,4488.5,0.4476]
[1759929488509,0.002,4488.9,4488.5,14.9476]
[1759929488709,0.002,4488.9,4488.6,0.4476]
[1759929488910,0.002,4488.9,4488.7,2.521]
[1759929489110,0.002,4488.9,4488.7,2.9686]
[1759929489340,0.002,4488.9,4488.8,14.5]
[1759929489725,0.002,4488.9,4488.8,14.9476]
[1759929490039,0.002,4488.9,4488.8,16.40397382]
[1759929491248,0.002,4488.9,4488.8,18.6317407]
[1759929492035,0.002,4488.9,4488.8,18.47737382]
[1759929492227,0.002,4488.9,4488.8,17.1322]
[1759929492553,0.002,4488.9,4488.8,19.80756688]
[1759929493044,0.002,4488.9,4488.8,24.10636687]
[1759929493216,0.002,4488.9,4488.8,24.54768831]
[1759929493540,0.002,4488.9,4488.8,25.18128831]
[1759929493741,0.002,4488.9,4488.8,27.43305876]
[1759929498073,0.002,4488.9,4488.8,24.91205876]
[1759929498275,0.002,4488.9,4488.8,27.43305876]
[1759929498448,0.002,4488.9,4488.8,24.91205876]
[1759929498631,0.002,4488.9,4488.8,27.43305876]
[1759929499056,0.002,4488.9,4488.8,24.91205876]
[1759929499276,0.002,4488.9,4488.8,27.43305876]
[1759929500366,0.0012,4488.9,4488.8,27.43305876]
[1759929502969,0.0012,4488.9,4488.8,24.91205876]
[1759929503156,0.0012,4488.9,4488.8,27.43305876]
[1759929504467,0.0012,4488.9,4488.8,24.27845876]
[1759929504637,0.0012,4488.9,4488.8,22.50065877]
[1759929505639,0.0012,4488.9,4488.8,19.97965877]
[1759929505935,0.0012,4488.9,4488.8,17.28656688]
[1759929506245,0.0012,4488.9,4488.8,19.80756688]
[1759929506633,0.0012,4488.9,4488.8,17.28656688]
[1759929506831,0.0012,4488.9,4488.8,19.80756688]
[1759929507080,0.0012,4488.9,4488.8,17.28656688]
[1759929507236,0.0012,4488.9,4488.8,19.36096688]
[1759929507430,0.0012,4488.9,4488.8,19.80856688]
[1759929507636,0.0012,4488.9,4488.8,17.28756688]
[1759929507868,0.0012,4488.9,4488.8,19.36096688]
[1759929508066,0.0012,4488.9,4488.8,19.80856688]
[1759929509087,0.0012,4488.9,4488.8,19.80756688]
[1759929510041,0.0012,4488.9,4488.8,14.6122]
[1759929510244,0.0012,4488.9,4488.8,19.35996688]
[1759929511264,0.0012,4488.9,4488.8,23.65876687]
[1759929512273,0.0012,4488.9,4488.8,24.10696687]
[1759929514477,0.0012,4488.9,4488.8,19.80816688]
[1759929519480,0.0012,4488.9,4488.8,20.71357776]
[1759929523377,0.0004,4488.9,4488.8,20.71357776]
[1759929525076,0.0004,4488.9,4488.8,25.01237775]
[1759929526370,0.0004,4488.9,4488.8,22.49237775]
[1759929526573,0.0004,4488.9,4488.8,25.01237775]
[1759929527385,0.0004,4488.9,4488.8,20.71357776]
[1759929528397,0.0004,4488.9,4488.8,18.19357776]
[1759929528699,0.0004,4488.9,4488.8,21.34717776]
[1759929528998,0.0004,4488.9,4488.8,21.43639128]
[1759929530497,0.0004,4488.9,4488.8,27.06685691]
[1759929533174,0.0004,4488.9,4488.8,18.91639128]
[1759929533373,0.0004,4488.9,4488.8,21.43639128]
[1759929533806,0.0004,4488.9,4488.8,18.19357776]
[1759929534002,0.0004,4488.9,4488.8,20.71357776]
[1759929534982,0.0004,4488.9,4488.8,26.34404339]
[1759929535985,0.0004,4488.9,4488.8,26.97764339]
[1759929537792,0.0004,4488.9,4488.8,26.34404339]
[1759929539826,0.0004,4488.9,4488.8,30.64284338]
[1759929543048,0.0004,4488.9,4488.8,31.27644338]
[1759929543247,0.0004,4488.9,4488.8,31.36566088]
[1759929545044,0.0004,4488.9,4488.8,22.58159525]
[1759929545244,0.0004,4488.9,4488.8,25.01237775]
[1759929546038,0.0004,4488.9,4488.8,30.64284338]
[1759929546415,0.0008,4489.2,4489.1,2.227618]
[1759929546714,0.0008,4489.2,4489.1,11.32046462]
[1759929546914,0.0008,4489.2,4489.1,11.88168844]
[1759929547353,0.0008,4489.2,4489.1,12.51528844]
[1759929547653,0.0008,4489.2,4489.1,23.86168844]
[1759929547953,0.0008,4489.2,4489.1,26.38168844]
[1759929550267,0.0008,4489.2,4489.1,23.86168844]
[1759929550456,0.0008,4489.2,4489.1,26.38168844]
[1759929551927,0.0008,4489.2,4489.1,23.86168844]
[1759929552051,0.0008,4489.2,4489.1,14.6112]
[1759929552235,0.0008,4489.2,4488.8,0.001]
[1759929552441,0.108,4489.1,4488.9,2.52]
[1759929552745,0.0008,4489.2,4488.9,2.52]
[1759929552962,0.42695222,4489.2,4488.9,2.52]
[1759929553752,0.42695222,4489.2,4488.8,0.001]
[1759929553958,0.53495222,4489.2,4488.9,2.52]
[1759929554360,2.33562352,4489.1,4489.0,2.52]
[1759929554973,0.108,4489.1,4489.0,2.52]
[1759929555649,2.22766763,4489.0,4488.8,0.001]
[1759929555849,4.14771725,4488.9,4488.8,0.001]
[1759929556061,4.14771725,4488.9,4488.8,2.521]
[1759929556248,4.25571725,4488.9,4488.8,0.001]
[1759929556661,4.25571725,4488.9,4488.8,2.521]
[1759929556875,5.40595297,4488.9,4488.8,2.521]
[1759929557178,5.51395297,4488.9,4488.8,0.001]
[1759929557374,5.51395297,4488.9,4488.8,2.521]
[1759929562771,1.92,4489.0,4488.8,2.521]
[1759929562967,0.1112,4488.9,4488.8,2.521]
[1759929563980,2.33891725,4488.9,4488.8,2.521]
[1759929564356,2.44691725,4488.9,4488.8,0.001]
[1759929564545,2.44691725,4488.9,4488.8,2.521]
[1759929565061,2.33891725,4488.9,4488.8,2.521]
[1759929566173,2.44691725,4488.9,4488.8,2.521]
[1759929566787,0.1112,4488.9,4488.8,2.521]
[1759929567985,2.33891725,4488.9,4488.8,2.521]
[1759929568694,5.02645165,4488.9,4488.8,0.001]
[1759929569059,5.02645165,4488.9,4488.8,2.521]
[1759929569483,5.02565165,4488.9,4488.8,2.521]
[1759929569870,5.02565165,4488.9,4488.8,0.001]
[1759929570188,5.02565165,4488.9,4488.8,2.521]
[1759929571894,9.54658114,4488.9,4488.8,2.521]
[1759929572269,5.02565165,4488.9,4488.8,2.37703681]
[1759929573074,2.6899344,4488.9,4488.8,2.37703681]
[1759929573373,2.0304,4488.9,4488.8,2.37703681]
[1759929574376,2.0304,4488.9,4488.8,2.37803681]
[1759929575501,4.25811725,4488.9,4488.8,2.37803681]
[1759929576890,4.36611725,4488.9,4488.8,2.37803681]
[1759929577079,4.36611725,4488.9,4488.8,0.001]
[1759929577284,5.4776638,4488.9,4488.8,2.521]
[1759929583937,5.3696638,4488.9,4488.8,2.521]
[1759929584923,5.4776638,4488.9,4488.8,2.521]
[1759929586837,3.5576638,4488.9,4488.8,2.521]
[1759929588042,3.5576638,4488.9,4488.8,0.001]
[1759929588221,3.5576638,4488.9,4488.8,2.521]
[1759929590841,0.1104,4488.9,4488.8,2.521]
[1759929591042,0.1124,4488.9,4488.8,2.521]
[1759929592546,0.1116,4488.9,4488.8,2.521]
[1759929593548,0.002,4488.9,4488.8,5.18446688]
[1759929593844,0.002,4488.9,4488.8,5.29566688]
[1759929594047,0.002,4488.9,4488.8,6.5001113]
[1759929594624,0.002,4488.9,4488.8,21.0001113]
[1759929596738,0.002,4488.9,4488.8,14.6122]
[1759929596942,0.002,4488.9,4488.8,17.1322]
[1759929597548,0.002,4488.9,4488.8,17.5679]
[1759929597748,0.002,4488.9,4488.8,17.1322]
[1759929598150,0.002,4488.9,4488.8,17.5679]
[1759929598350,0.002,4488.9,4488.8,19.5474724]
[1759929598662,0.002,4488.9,4488.8,21.77523928]
[1759929599162,0.002,4488.9,4488.8,19.1117724]
[1759929599360,0.002,4488.9,4488.8,21.33953928]
[1759929599733,0.002,4488.9,4488.8,19.25523928]
[1759929600061,0.002,4488.9,4488.8,21.77523928]
[1759929600463,0.002,4488.9,4488.8,26.07403927]
[1759929603359,0.002,4488.9,4488.8,21.32627239]
[1759929603541,0.002,4488.9,4488.8,4.29979999]
[1759929603739,2.32871725,4488.9,4488.8,0.001]
[1759929603942,8.76964674,4488.9,4488.8,0.001]
[1759929604147,8.76964674,4488.9,4488.8,2.52]
[1759929604432,4.14971725,4488.9,4488.8,2.52]
[1759929604648,4.88653365,4488.9,4488.8,2.52]
[1759929604845,0.002,4488.9,4488.8,2.52]
[1759929605039,0.002,4488.9,4488.8,2.9735]
[1759929605571,0.002,4488.9,4488.8,5.20126688]
[1759929605964,0.002,4488.9,4488.8,5.83486688]
[1759929606273,0.002,4488.9,4488.8,20.4240808]
[1759929606468,0.002,4488.9,4488.8,22.67585125]
[1759929607777,0.002,4488.9,4488.8,27.85066448]
[1759929607979,0.002,4488.9,4488.8,37.23492964]
[1759929609545,0.002,4488.9,4488.8,36.91285139]
[1759929610978,0.002,4488.9,4488.8,36.5810459]
[1759929611143,0.002,4488.9,4488.8,19.52325125]
[1759929611348,0.002,4488.9,4488.8,22.04225125]
[1759929611555,0.002,4488.9,4488.8,22.67585125]
[1759929611955,0.002,4488.9,4488.8,36.5810459]
[1759929612167,0.002,4488.9,4488.8,37.23492964]
[1759929612994,0.002,4488.9,4488.8,36.91285139]
[1759929613659,0.002,4488.9,4488.8,37.02405139]
[1759929615590,0.0012,4488.9,4488.8,37.02405139]
[1759929620302,0.0012,4488.9,4488.8,19.63445125]
[1759929620607,0.0012,4488.9,4488.8,22.78705125]
[1759929623895,0.0012,4488.9,4488.8,24.92765674]
[1759929624100,0.0012,4488.9,4488.8,25.03885674]
[1759929626516,1e-08,4489.8,4489.7,4.78092031]
[1759929626685,1e-08,4489.8,4489.7,7.99975119]
[1759929626878,1e-08,4489.8,4489.7,8.56445119]
[1759929627077,1e-08,4489.8,4489.7,8.67565119]
[1759929627407,1e-08,4489.8,4489.7,23.17565119]
[1759929628115,1e-08,4489.8,4489.7,18.73765119]
[1759929628407,1e-08,4489.8,4489.7,14.5]
[1759929628609,1e-08,4489.8,4489.7,17.018]
[1759929629986,1e-08,4489.8,4489.7,19.24532031]
[1759929630205,1e-08,4489.8,4489.7,19.69882031]
[1759929633117,1e-08,4489.8,4489.7,5.19882031]
[1759929633291,1e-08,4489.8,4489.7,5.94144293]
[1759929633611,1e-08,4489.8,4489.7,20.44144293]
[1759929633784,1e-08,4489.8,4489.7,14.9535]
[1759929633986,1e-08,4489.8,4489.7,17.018]
[1759929634319,1e-08,4489.8,4489.7,19.69862031]
[1759929634616,1e-08,4489.8,4489.7,14.5]
[1759929634820,1e-08,4489.8,4489.7,17.018]
[1759929635019,1e-08,4489.8,4489.7,14.5]
[1759929635227,2.22745424,4489.5,4488.8,0.001]
[1759929635406,0.22274542,4489.4,4488.8,0.001]
[1759929635714,5.62730332,4489.1,4488.8,0.001]
[1759929635913,2.22771725,4488.9,4488.8,0.001]
[1759929636116,2.22771725,4488.9,4488.8,2.519]
[1759929636526,2.32861725,4488.9,4488.8,0.001]
[1759929636818,2.2278918,4488.6,4488.5,0.601]
[1759929637006,9.87609512,4488.6,4488.5,0.601]
[1759929638005,4.2487918,4488.6,4488.5,0.601]
[1759929638193,2.22796542,4488.4,4488.3,0.001]
[1759929638388,4.76485196,4488.4,4488.3,2.519]
[1759929638719,4.86495196,4488.4,4488.3,2.519]
[1759929639107,4.86495196,4488.4,4488.3,0.001]
[1759929639307,4.86495196,4488.4,4488.3,2.519]
[1759929639892,4.86495196,4488.4,4488.3,0.001]
[1759929648738,4.86495196,4488.4,4488.3,2.52]
[1759929649324,4.24806542,4488.4,4488.3,2.52]
[1759929651034,2.32886542,4488.4,4488.3,2.52]
[1759929652603,2.32886542,4488.4,4488.3,0.001]
[1759929652804,4.24886542,4488.4,4488.3,2.52]
[1759929653436,2.32886542,4488.4,4488.3,2.52]
[1759929653805,1.12125882,4488.9,4488.3,2.52]
[1759929654006,0.1029,4488.9,4488.3,2.52]
[1759929654435,2.22796542,4488.4,4488.3,2.52]
[1759929654731,2.32886542,4488.4,4488.3,2.52]
[1759929655530,2.22796542,4488.4,4488.3,2.52]
[1759929656407,2.32886542,4488.4,4488.3,2.52]
[1759929657460,4.89654015,4488.4,4488.3,2.52]
[1759929657932,10.53166305,4488.4,4488.3,2.52]
[1759929658330,10.53366305,4488.4,4488.3,0.001]
[1759929659865,4.89854015,4488.4,4488.3,0.001]
[1759929661133,4.89854015,4488.4,4488.3,2.52]
[1759929661760,4.89774015,4488.4,4488.3,2.52]
[1759929662286,4.89774015,4488.4,4488.3,0.001]
[1759929662731,4.89774015,4488.4,4488.3,2.52]
[1759929664440,5.37791333,4488.4,4488.3,2.52]
[1759929665399,19.31905046,4488.4,4488.3,0.001]
[1759929665685,2.22816399,4488.0,4487.9,0.301]
[1759929665902,5.0709446,4488.0,4487.9,0.301]
[1759929666244,5.1718446,4488.0,4487.9,0.301]
[1759929666462,5.77294134,4488.0,4487.9,0.301]
[1759929668245,5.1718446,4488.0,4487.9,0.301]
[1759929668484,5.77294134,4488.0,4487.9,0.301]
[1759929668861,5.1718446,4488.0,4487.9,0.301]
[1759929669059,5.77294134,4488.0,4487.9,0.301]
[1759929669660,5.1718446,4488.0,4487.9,0.301]
[1759929670488,5.77294134,4488.0,4487.9,0.301]
[1759929671067,5.1718446,4488.0,4487.9,0.301]
[1759929671992,5.77294134,4488.0,4487.9,0.301]
[1759929672202,4.89301364,4487.9,4487.8,0.001]
[1759929672401,7.97566689,4487.9,4487.8,0.001]
[1759929672581,8.08266689,4487.9,4487.8,0.001]
[1759929673376,7.28478171,4487.9,4487.8,0.001]
[1759929678185,7.8850984,4487.9,4487.8,0.001]
[1759929680014,13.52334598,4487.9,4487.8,0.001]
[1759929681419,12.28942929,4487.9,4487.8,0.001]
[1759929681603,5.27065785,4487.9,4487.8,0.001]
[1759929682202,5.06198682,4487.9,4487.8,0.001]
[1759929682405,1.24999142,4488.4,4487.8,0.001]
[1759929682406,2.22997327,4488.4,4487.8,0.001]
[1759929682702,0.1112,4487.9,4487.8,0.001]
[1759929683789,2.33941364,4487.9,4487.8,0.001]
[1759929683992,2.79306753,4487.9,4487.8,0.001]
[1759929684299,5.1931731,4487.9,4487.8,0.001]
[1759929684696,6.03438402,4487.9,4487.8,0.001]
[1759929685731,11.0390316,4487.9,4487.8,0.001]
[1759929686042,5.40078402,4487.9,4487.8,0.001]
[1759929687404,5.40085089,4487.9,4487.8,0.001]
[1759929687634,5.1923731,4487.9,4487.8,0.001]
[1759929688632,4.71226753,4487.9,4487.8,0.001]
[1759929688838,5.19265176,4487.9,4487.8,0.001]
[1759929692016,4.60616753,4487.9,4487.8,0.001]
[1759929692216,4.14941364,4487.9,4487.8,0.001]
[1759929692423,2.33751364,4487.9,4487.8,0.001]
[1759929694332,2.22941364,4487.9,4487.8,0.001]
[1759929697321,2.33751364,4487.9,4487.8,0.001]
[1759929698718,2.22941364,4487.9,4487.8,0.001]
[1759929700033,2.33751364,4487.9,4487.8,0.001]
[1759929700234,2.33751364,4487.9,4487.8,2.521]
[1759929703363,2.22941364,4487.9,4487.8,0.001]
[1759929703567,2.79407753,4487.9,4487.8,0.001]
[1759929703736,5.19466045,4487.9,4487.8,0.001]
[1759929704833,5.40327216,4487.9,4487.8,0.001]
[1759929705635,5.19466045,4487.9,4487.8,0.001]
[1759929705847,9.71830213,4487.9,4487.8,0.001]
[1759929707866,9.71750213,4487.9,4487.8,0.001]
[1759929710259,2.22846191,4487.4,4487.3,0.001]
[1759929710458,9.32646258,4487.4,4487.3,0.001]
[1759929710631,9.8070455,4487.4,4487.3,0.001]
[1759929710830,5.39150382,4487.4,4487.3,0.001]
[1759929711026,9.9151455,4487.4,4487.3,0.001]
[1759929711555,9.70647204,4487.4,4487.3,0.001]
[1759929713160,5.18283036,4487.4,4487.3,0.001]
[1759929713359,9.26078651,4487.4,4487.3,0.001]
[1759929713863,4.14846191,4487.4,4487.3,0.001]
[1759929714031,0.002,4487.9,4487.3,0.001]
[1759929714235,2.23023591,4487.9,4487.3,0.001]
[1759929714432,0.002,4487.9,4487.3,14.501]
[1759929714756,2.22826329,4487.8,4487.3,1.74973856]
[1759929714945,2.22835326,4487.7,4487.3,0.001]
[1759929715764,0.002,4487.9,4487.3,0.001]
[1759929716068,0.002,4487.9,4487.4,2.66155631]
[1759929716257,0.002,4487.9,4487.5,0.4331]
[1759929716564,0.002,4487.9,4487.6,0.02228362]
[1759929716769,2.22828549,4487.8,4487.6,0.02228362]
[1759929716974,0.1081,4487.7,4487.3,0.001]
[1759929717134,0.1081,4487.6,4487.3,0.001]
[1759929717345,2.22846191,4487.4,4487.3,0.001]
[1759929717748,2.33656191,4487.4,4487.3,0.001]
[1759929726879,4.25656191,4487.4,4487.3,0.001]
[1759929727076,4.73723273,4487.4,4487.3,0.001]
[1759929728872,2.81721151,4487.4,4487.3,0.001]
[1759929729080,3.53715355,4487.4,4487.3,0.001]
[1759929729472,3.05650395,4487.4,4487.3,0.001]
[1759929730205,2.33656191,4487.4,4487.3,0.001]
[1759929730808,2.22826329,4487.8,4487.3,2.521]
[1759929731016,2.22839103,4487.6,4487.3,2.521]
[1759929731296,2.22836259,4487.6,4487.3,2.521]
[1759929731678,2.22840381,4487.6,4487.3,2.521]
[1759929731876,0.1081,4487.8,4487.3,2.521]
[1759929732079,2.22846191,4487.4,4487.3,2.521]
[1759929733016,2.22842079,4487.5,4487.3,2.521]
[1759929733211,2.22843584,4487.5,4487.3,2.521]
[1759929733435,0.1112,4487.4,4487.3,2.521]
[1759929734398,2.33966191,4487.4,4487.3,2.521]
[1759929735745,2.44776191,4487.4,4487.3,0.001]